[Event "FIDE WSTC Open 50 2025"]
[Site "Prague"]
[Date "2025.02.20"]
[Round "4.4"]
[White "Emms, John M"]
[Black "D'Amore, Carlo"]
[Result "0-1"]
[Annotator "RC"]
[ECO "C50"]
[WhiteElo "2409"]
[BlackElo "2362"]
[PlyCount "116"]
[EventDate "2025.02.17"]
[EventType "team-tourn"]
[EventCountry "CZE"]
[SourceTitle "playchess.com"]
[Source "ChessBase"]
[SourceQuality "1"]
[TimeControl "40/5400+30:1800+30"]

1. e4 {[%emt 0:00:16]} e5 {[%emt 0:00:51]} 2. Nf3 {[%emt 0:00:13]} Nc6 {[%emt 0:00:08]} 3. Bc4 {[%emt 0:00:23]} Bc5 {[%emt 0:00:23]} 4. O-O {[%emt 0:02:26]} Nf6 {[%emt 0:01:53]} 5. d3 {[%emt 0:00:15]} d6 {[%emt 0:01:48]} 6. c3 {[%emt 0:00:25]} a5 {[%emt 0:02:23]} 7. Re1 {[%emt 0:11:40]} Ba7 {[%emt 0:02:04]} 8. Nbd2 {[%emt 0:13:38]} Ne7 {[%emt 0:12:05]} 9. h3 {[%emt 0:12:56]} Ng6 {[%emt 0:01:13]} 10. Nf1 {[%emt 0:07:42]} O-O {[%emt 0:01:18]} 11. Ng3 {[%emt 0:01:20]} h6 {[%emt 0:10:00]} 12. Bb3 {[%emt 0:00:51]} Nh7 {[%emt 0:07:14]} 13. d4 {[%emt 0:03:35]} Qf6 {[%emt 0:00:17]} 14. Be3 {[%emt 0:11:32]} Ng5 {[%emt 0:01:07]} 15. Nxg5 {[%emt 0:09:14]} hxg5 {[%emt 0:00:06]} 16. Nf5 {[%emt 0:01:29]} Nf4 {[%emt 0:08:46]} 17. Kh2 {[%emt 0:07:04]} g6 {[%emt 0:03:52]} 18. Nh6+ {[%emt 0:03:54]} Kg7 {[%emt 0:00:15]} 19. Ng4 {[%emt 0:00:17]} Bxg4 {[%emt 0:00:18]} 20. Qxg4 {[%emt 0:00:17]} a4 {[%emt 0:07:38]} 21. Bc4 {[%emt 0:01:22]} exd4 {[%emt 0:03:38]} 22. cxd4 {[%emt 0:00:09]} Bxd4 {[%emt 0:00:43]} 23. Bxd4 {[%emt 0:04:09]} Qxd4 {[%emt 0:00:05]} 24. Qxg5 {[%emt 0:00:16]} Nxh3 {[%emt 0:10:43]} 25. Qd5 {[%emt 0:01:56]} Qxd5 {[%emt 0:00:09]} 26. exd5 {[%emt 0:00:17]} Nf4 {[%emt 0:00:09]} 27. Kg3 {[%emt 0:01:22]} Nh5+ {[%emt 0:00:13]} 28. Kf3 {[%emt 0:00:04]} Ra5 {[%emt 0:04:06]} 29. b4 {[%emt 0:01:20]} axb3 {[%emt 0:00:30]} 30. axb3 {[%emt 0:00:01]} Rfa8 {[%emt 0:02:32]} 31. Rxa5 {[%emt 0:01:18]} Rxa5 {[%emt 0:00:05]} 32. Re7 {[%emt 0:00:21]} Rc5 {[%emt 0:00:38]} 33. g4 {[%emt 0:02:48]} Nf6 {[%emt 0:02:33]} 34. g5 {[%emt 0:00:18]} Nh7 {[%emt 0:00:59]} 35. Kg4 {[%emt 0:00:46]} b5 {[%emt 0:02:32]} 36. Bf1 {[%emt 0:00:05]} Kf8 {[%emt 0:00:49]} 37. Re1 {[%emt 0:00:16]} Rxd5 {[%emt 0:00:53]} 38. f4 {[%emt 0:00:04]} b4 {[%emt 0:01:19]} 39. Rc1 {[%emt 0:01:42]} c5 {[%emt 0:01:08]} 40. Ra1 {[%emt 0:00:15]} Rd4 {[%emt 0:00:34]} 41. Ra7 {[%emt 0:32:08]} d5 {[%emt 0:38:04]} 42. Rb7 {[%emt 0:00:00]} Rd1 {[%emt 0:00:00]} 43. Be2 {[%emt 0:00:00]} Rg1+ {[%emt 0:00:00]} 44. Kh4 {[%emt 0:00:00]} f6 {[%emt 0:00:00]} 45. Bf3 {[%emt 0:00:00]} fxg5+ {[%emt 0:00:00]} 46. fxg5 {[%emt 0:00:00]} Nxg5 {[%emt 0:00:00]} 47. Bxd5 {[%emt 0:00:00]} Rd1 {[%emt 0:00:00]} 48. Kxg5 {[%emt 0:00:03]} Rxd5+ {[%emt 0:00:00]} 49. Kxg6 {[%emt 0:00:03]} Rd3 {[%emt 0:00:00]} 50. Rc7 {[%emt 0:03:13]} Rxb3 {[%emt 0:00:00]} 51. Rxc5 {[%emt 0:00:03]} Ke7 {[%emt 0:00:00]} 52. Kf5 {[%emt 0:00:44]} Kd6 {[%emt 0:00:00]} 53. Rb5 {[%emt 0:00:17]} Kc6 {[%emt 0:00:00]} 54. Re5 {[%emt 0:01:30]} Rb1 {[%emt 0:00:00]} 55. Re2 {[%emt 0:01:06]} Kd5 {[%emt 0:00:00]} 56. Rd2+ {[%emt 0:00:10]} Kc4 {[%emt 0:00:00]} 57. Rc2+ {[%emt 0:00:12]} Kd3 {[%emt 0:00:00]} 58. Rc8 {[%emt 0:00:11]} Re1 {[%emt 0:00:00]} 0-1

[Event "FIDE WSTC Open 50 2025"]
[Site "Prague"]
[Date "2025.02.20"]
[Round "4.5"]
[White "Hjartarson, Johann"]
[Black "Kazhgaleyev, Murtas"]
[Result "0-1"]
[Annotator "RC"]
[ECO "B38"]
[WhiteElo "2464"]
[BlackElo "2495"]
[PlyCount "106"]
[EventDate "2025.02.17"]
[EventType "team-tourn"]
[EventCountry "CZE"]
[SourceTitle "playchess.com"]
[Source "ChessBase"]
[SourceQuality "1"]
[TimeControl "40/5400+30:1800+30"]

1. e4 {[%emt 0:00:07]} c5 {[%emt 0:00:04]} 2. Nf3 {[%emt 0:00:07]} Nc6 {[%emt 0:00:04]} 3. d4 {[%emt 0:00:37]} cxd4 {[%emt 0:00:04]} 4. Nxd4 {[%emt 0:00:07]} g6 {[%emt 0:00:02]} 5. c4 {[%emt 0:03:08]} Bg7 {[%emt 0:00:42]} 6. Be3 {[%emt 0:00:24]} Qb6 {[%emt 0:00:06]} 7. Nb3 {[%emt 0:03:03]} Qd8 {[%emt 0:00:48]} 8. Nc3 {[%emt 0:03:54]} Bxc3+ {[%emt 0:00:38]} 9. bxc3 {[%emt 0:00:09]} Nf6 {[%emt 0:00:03]} 10. f3 {[%emt 0:00:32]} d6 {[%emt 0:01:30]} 11. Bh6 {[%emt 0:09:42]} Be6 {[%emt 0:05:04]} 12. Rb1 {[%emt 0:18:05]} Rc8 {[%emt 0:09:22]} 13. Nd4 {[%emt 0:05:47]} Qa5 {[%emt 0:06:33]} 14. Nxe6 {[%emt 0:02:44]} fxe6 {[%emt 0:00:21]} 15. Rxb7 {[%emt 0:01:01]} Qxc3+ {[%emt 0:02:03]} 16. Qd2 {[%emt 0:01:00]} Qa1+ {[%emt 0:02:37]} 17. Kf2 {[%emt 0:01:49]} Kf7 {[%emt 0:05:26]} 18. Rg1 {[%emt 0:14:04]} Rb8 {[%emt 0:06:08]} 19. Rb5 {[%emt 0:03:04]} Qd4+ {[%emt 0:03:45]} 20. Be3 {[%emt 0:04:44]} Qxd2+ {[%emt 0:00:05]} 21. Bxd2 {[%emt 0:00:05]} a6 {[%emt 0:02:33]} 22. Rxb8 {[%emt 0:00:29]} Rxb8 {[%emt 0:00:09]} 23. Bc3 {[%emt 0:00:06]} Nb4 {[%emt 0:02:04]} 24. c5 {[%emt 0:04:36]} Nxa2 {[%emt 0:04:54]} 25. Ba1 {[%emt 0:00:37]} Nb4 {[%emt 0:04:52]} 26. cxd6 {[%emt 0:03:16]} exd6 {[%emt 0:00:26]} 27. e5 {[%emt 0:00:18]} Nc2 {[%emt 0:09:02]} 28. Bxa6 {[%emt 0:03:36]} Ra8 {[%emt 0:02:24]} 29. exf6 {[%emt 0:04:14]} Rxa6 {[%emt 0:00:23]} 30. Bc3 {[%emt 0:01:11]} Ra3 {[%emt 0:01:57]} 31. Bd2 {[%emt 0:00:49]} Kxf6 {[%emt 0:02:01]} 32. Rb1 {[%emt 0:00:09]} Nd4 {[%emt 0:01:48]} 33. Rb7 {[%emt 0:02:43]} Ra2 {[%emt 0:03:22]} 34. Ke3 {[%emt 0:02:11]} h5 {[%emt 0:01:12]} 35. f4 {[%emt 0:05:52]} e5 {[%emt 0:01:09]} 36. fxe5+ {[%emt 0:00:23]} dxe5 {[%emt 0:00:10]} 37. Rb6+ {[%emt 0:00:31]} Kf5 {[%emt 0:00:24]} 38. h3 {[%emt 0:00:46]} h4 {[%emt 0:03:39]} 39. Rd6 {[%emt 0:02:08]} Ne6 {[%emt 0:05:00]} 40. Rd7 {[%emt 0:01:22]} Nf4 {[%emt 0:01:59]} 41. Kf3 {[%emt 0:01:40]} e4+ {[%emt 0:03:32]} 42. Kf2 {[%emt 0:00:12]} Nxg2 {[%emt 0:02:09]} 43. Kxg2 {[%emt 0:00:12]} e3 {[%emt 0:00:08]} 44. Kf3 {[%emt 0:00:13]} exd2 {[%emt 0:00:13]} 45. Rd5+ {[%emt 0:01:27]} Ke6 {[%emt 0:00:24]} 46. Rd8 {[%emt 0:00:08]} Kf6 {[%emt 0:06:17]} 47. Rd6+ {[%emt 0:01:56]} Ke5 {[%emt 0:00:26]} 48. Rd8 {[%emt 0:00:06]} g5 {[%emt 0:00:25]} 49. Re8+ {[%emt 0:05:23]} Kd4 {[%emt 0:03:40]} 50. Rd8+ {[%emt 0:00:36]} Kc4 {[%emt 0:01:33]} 51. Ke2 {[%emt 0:02:16]} g4 {[%emt 0:02:00]} 52. Rh8 {[%emt 0:09:29]} g3 {[%emt 0:02:34]} 53. Rxh4+ {[%emt 0:00:28]} Kc3 {[%emt 0:00:05]} 0-1

[Event "FIDE WSTC Open 50 2025"]
[Site "Prague"]
[Date "2025.02.20"]
[Round "4.6"]
[White "Kotsur, Pavel"]
[Black "Petursson, Margeir"]
[Result "1-0"]
[Annotator "RC"]
[ECO "E11"]
[WhiteElo "2478"]
[BlackElo "2403"]
[PlyCount "133"]
[EventDate "2025.02.17"]
[EventType "team-tourn"]
[EventCountry "CZE"]
[SourceTitle "playchess.com"]
[Source "ChessBase"]
[SourceQuality "1"]
[TimeControl "40/5400+30:1800+30"]

1. d4 {[%emt 0:00:09]} Nf6 {[%emt 0:00:09]} 2. c4 {[%emt 0:00:15]} e6 {[%emt 0:00:12]} 3. Nf3 {[%emt 0:00:40]} Bb4+ {[%emt 0:00:05]} 4. Bd2 {[%emt 0:00:09]} c5 {[%emt 0:01:42]} 5. Bxb4 {[%emt 0:01:58]} cxb4 {[%emt 0:00:02]} 6. e3 {[%emt 0:00:05]} O-O {[%emt 0:01:11]} 7. Bd3 {[%emt 0:07:33]} d6 {[%emt 0:02:27]} 8. Nbd2 {[%emt 0:02:07]} a5 {[%emt 0:16:16]} 9. O-O {[%emt 0:02:57]} b6 {[%emt 0:05:34]} 10. Re1 {[%emt 0:01:45]} Nc6 {[%emt 0:07:49]} 11. d5 {[%emt 0:11:32]} Ne5 {[%emt 0:09:32]} 12. Nxe5 {[%emt 0:03:15]} dxe5 {[%emt 0:02:27]} 13. e4 {[%emt 0:00:18]} Nd7 {[%emt 0:02:21]} 14. a3 {[%emt 0:01:57]} Nc5 {[%emt 0:01:44]} 15. Bc2 {[%emt 0:00:15]} Bd7 {[%emt 0:04:17]} 16. Re3 {[%emt 0:09:43]} Qe7 {[%emt 0:05:03]} 17. Qe2 {[%emt 0:05:05]} Qd6 {[%emt 0:01:43]} 18. a4 {[%emt 0:01:30]} Rae8 {[%emt 0:02:33]} 19. Nf3 {[%emt 0:03:30]} f6 {[%emt 0:02:29]} 20. b3 {[%emt 0:01:01]} Rd8 {[%emt 0:01:15]} 21. Ne1 {[%emt 0:10:54]} Bc8 {[%emt 0:03:04]} 22. Rd1 {[%emt 0:02:48]} Qc7 {[%emt 0:02:02]} 23. g3 {[%emt 0:02:25]} Rfe8 {[%emt 0:03:21]} 24. Ng2 {[%emt 0:05:21]} Re7 {[%emt 0:02:16]} 25. Nh4 {[%emt 0:05:00]} Nb7 {[%emt 0:03:29]} 26. Red3 {[%emt 0:01:46]} Rd6 {[%emt 0:00:55]} 27. R3d2 {[%emt 0:00:43]} Nc5 {[%emt 0:03:03]} 28. Qe1 {[%emt 0:01:44]} Re8 {[%emt 0:00:51]} 29. Qe2 {[%emt 0:01:14]} Re7 {[%emt 0:02:43]} 30. Re1 {[%emt 0:02:01]} Rd8 {[%emt 0:01:08]} 31. Rdd1 {[%emt 0:00:36]} Ree8 {[%emt 0:00:59]} 32. Qe3 {[%emt 0:03:24]} Nb7 {[%emt 0:00:49]} 33. Rd2 {[%emt 0:01:22]} Qc5 {[%emt 0:01:29]} 34. Qe2 {[%emt 0:00:58]} Qc7 {[%emt 0:01:16]} 35. Ng2 {[%emt 0:01:45]} exd5 {[%emt 0:02:22]} 36. exd5 {[%emt 0:00:18]} Nd6 {[%emt 0:00:37]} 37. Nh4 {[%emt 0:01:02]} f5 {[%emt 0:04:07]} 38. f3 {[%emt 0:03:12]} Qc5+ {[%emt 0:01:24]} 39. Qf2 {[%emt 0:01:48]} Qxf2+ {[%emt 0:00:55]} 40. Kxf2 {[%emt 0:00:03]} Kf7 {[%emt 0:01:09]} 41. g4 {[%emt 0:35:38]} g6 {[%emt 0:32:27]} 42. Rde2 {[%emt 0:00:00]} Kf6 {[%emt 0:00:00]} 43. h3 {[%emt 0:00:00]} Bd7 {[%emt 0:00:00]} 44. Ng2 {[%emt 0:00:00]} Nf7 {[%emt 0:00:00]} 45. Ne3 {[%emt 0:00:00]} f4 {[%emt 0:00:00]} 46. Nf1 {[%emt 0:00:00]} Nd6 {[%emt 0:00:00]} 47. h4 {[%emt 0:00:00]} h6 {[%emt 0:00:00]} 48. Nd2 {[%emt 0:00:00]} g5 {[%emt 0:00:00]} 49. Rh1 {[%emt 0:00:00]} Rh8 {[%emt 0:00:00]} 50. Ke1 {[%emt 0:00:00]} Rdg8 {[%emt 0:00:00]} 51. Reh2 {[%emt 0:00:00]} gxh4 {[%emt 0:00:00]} 52. Rxh4 {[%emt 0:00:00]} Nf7 {[%emt 0:00:00]} 53. Ne4+ {[%emt 0:00:00]} Ke7 {[%emt 0:00:00]} 54. Kf2 {[%emt 0:00:00]} Rd8 {[%emt 0:00:00]} 55. Rh5 {[%emt 0:00:00]} Bc8 {[%emt 0:01:49]} 56. Nd2 {[%emt 0:00:00]} Rhg8 {[%emt 0:01:52]} 57. Bf5 {[%emt 0:00:17]} Bxf5 {[%emt 0:00:33]} 58. Rxf5 {[%emt 0:00:32]} Rg5 {[%emt 0:00:41]} 59. Rxh6 {[%emt 0:01:20]} Nxh6 {[%emt 0:02:49]} 60. Rxg5 {[%emt 0:00:06]} Nf7 {[%emt 0:00:18]} 61. Rh5 {[%emt 0:00:15]} Kf6 {[%emt 0:00:41]} 62. Ne4+ {[%emt 0:01:18]} Kg6 {[%emt 0:00:29]} 63. Rf5 {[%emt 0:01:03]} Rh8 {[%emt 0:00:19]} 64. Kg2 {[%emt 0:00:04]} Rb8 {[%emt 0:00:05]} 65. Rf6+ {[%emt 0:00:14]} Kg7 {[%emt 0:00:02]} 66. Re6 {[%emt 0:00:07]} Rb7 {[%emt 0:00:42]} 67. Nd6 {[%emt 0:01:10]} 1-0

[Event "FIDE WSTC Open 50 2025"]
[Site "Prague"]
[Date "2025.02.20"]
[Round "4.7"]
[White "Olafsson, Helgi"]
[Black "Temirbayev, Serikbay"]
[Result "0-1"]
[Annotator "RC"]
[ECO "E97"]
[WhiteElo "2466"]
[BlackElo "2372"]
[PlyCount "74"]
[EventDate "2025.02.17"]
[EventType "team-tourn"]
[EventCountry "CZE"]
[SourceTitle "playchess.com"]
[Source "ChessBase"]
[SourceQuality "1"]
[TimeControl "40/5400+30:1800+30"]

1. d4 {[%emt 0:00:07]} Nf6 {[%emt 0:00:17]} 2. c4 {[%emt 0:00:06]} g6 {[%emt 0:00:20]} 3. Nc3 {[%emt 0:00:07]} Bg7 {[%emt 0:00:42]} 4. e4 {[%emt 0:00:17]} d6 {[%emt 0:00:44]} 5. Be2 {[%emt 0:00:10]} O-O {[%emt 0:00:48]} 6. Nf3 {[%emt 0:00:11]} e5 {[%emt 0:03:25]} 7. O-O {[%emt 0:01:43]} Nc6 {[%emt 0:00:57]} 8. d5 {[%emt 0:00:13]} Ne7 {[%emt 0:00:10]} 9. b4 {[%emt 0:00:28]} a5 {[%emt 0:11:09]} 10. bxa5 {[%emt 0:00:29]} c5 {[%emt 0:00:29]} 11. a4 {[%emt 0:06:42]} Rxa5 {[%emt 0:03:21]} 12. Bd2 {[%emt 0:00:29]} Ra6 {[%emt 0:00:20]} 13. Rb1 {[%emt 0:00:58]} Ne8 {[%emt 0:13:20]} 14. g3 {[%emt 0:18:54]} h6 {[%emt 0:07:15]} 15. Nh4 {[%emt 0:06:53]} f5 {[%emt 0:16:15]} 16. exf5 {[%emt 0:03:00]} gxf5 {[%emt 0:01:25]} 17. f4 {[%emt 0:02:29]} e4 {[%emt 0:00:29]} 18. Kh1 {[%emt 0:08:59]} Nf6 {[%emt 0:02:33]} 19. Nb5 {[%emt 0:02:07]} Kh7 {[%emt 0:00:58]} 20. h3 {[%emt 0:03:35]} Ng6 {[%emt 0:07:23]} 21. Ng2 {[%emt 0:01:09]} Ne8 {[%emt 0:01:14]} 22. g4 {[%emt 0:09:01]} Nh4 {[%emt 0:02:44]} 23. Nxh4 {[%emt 0:00:21]} Qxh4 {[%emt 0:00:07]} 24. Kg2 {[%emt 0:00:03]} Rg8 {[%emt 0:03:44]} 25. Be1 {[%emt 0:05:44]} Qe7 {[%emt 0:00:21]} 26. Bg3 {[%emt 0:04:49]} Bf6 {[%emt 0:00:57]} 27. Kh1 {[%emt 0:01:34]} Kh8 {[%emt 0:04:35]} 28. Bh2 {[%emt 0:00:30]} Bh4 {[%emt 0:01:03]} 29. Rg1 {[%emt 0:02:03]} Bf2 {[%emt 0:02:05]} 30. Rg2 {[%emt 0:00:49]} e3 {[%emt 0:00:02]} 31. Nc3 {[%emt 0:08:18]} Qh4 {[%emt 0:01:00]} 32. gxf5 {[%emt 0:02:28]} Rxg2 {[%emt 0:03:47]} 33. Kxg2 {[%emt 0:00:56]} b6 {[%emt 0:03:26]} 34. Bg4 {[%emt 0:06:33]} h5 {[%emt 0:01:07]} 35. Bxh5 {[%emt 0:00:11]} Bxf5 {[%emt 0:00:04]} 36. Bxe8 {[%emt 0:03:46]} Qxh3+ {[%emt 0:00:08]} 37. Kh1 {[%emt 0:00:03]} Bg4 {[%emt 0:00:12]} 0-1

[Event "FIDE WSTC Open 50 2025"]
[Site "Prague"]
[Date "2025.02.20"]
[Round "4.8"]
[White "Min, Valeriy"]
[Black "Arnason, Jon L"]
[Result "0-1"]
[Annotator "RC"]
[ECO "A09"]
[WhiteElo "2273"]
[BlackElo "2405"]
[PlyCount "74"]
[EventDate "2025.02.17"]
[EventType "team-tourn"]
[EventCountry "CZE"]
[SourceTitle "playchess.com"]
[Source "ChessBase"]
[SourceQuality "1"]
[TimeControl "40/5400+30:1800+30"]

1. Nf3 {[%emt 0:00:05]} d5 {[%emt 0:00:19]} 2. c4 {[%emt 0:01:18]} dxc4 {[%emt 0:01:14]} 3. Qa4+ {[%emt 0:01:39]} Nd7 {[%emt 0:02:02]} 4. Qxc4 {[%emt 0:00:10]} Ngf6 {[%emt 0:01:25]} 5. g3 {[%emt 0:00:35]} e6 {[%emt 0:08:59]} 6. Bg2 {[%emt 0:00:34]} c5 {[%emt 0:01:23]} 7. O-O {[%emt 0:01:12]} a6 {[%emt 0:01:10]} 8. a4 {[%emt 0:00:34]} b5 {[%emt 0:01:55]} 9. Qc2 {[%emt 0:00:44]} Bb7 {[%emt 0:00:46]} 10. d3 {[%emt 0:05:45]} Be7 {[%emt 0:01:26]} 11. Nc3 {[%emt 0:17:06]} Bc6 {[%emt 0:12:33]} 12. Nd2 {[%emt 0:04:08]} Bxg2 {[%emt 0:02:01]} 13. Kxg2 {[%emt 0:02:58]} O-O {[%emt 0:01:44]} 14. Nf3 {[%emt 0:01:18]} Qb6 {[%emt 0:02:47]} 15. Qb3 {[%emt 0:05:22]} Rab8 {[%emt 0:02:23]} 16. Bf4 {[%emt 0:06:01]} Rb7 {[%emt 0:00:12]} 17. axb5 {[%emt 0:00:15]} axb5 {[%emt 0:00:10]} 18. e4 {[%emt 0:00:22]} Qc6 {[%emt 0:07:56]} 19. Rfc1 {[%emt 0:03:55]} Rc8 {[%emt 0:02:19]} 20. Qd1 {[%emt 0:05:44]} h6 {[%emt 0:02:44]} 21. h4 {[%emt 0:02:50]} Rb6 {[%emt 0:05:03]} 22. Ra7 {[%emt 0:09:52]} Ra6 {[%emt 0:11:42]} 23. Ra1 {[%emt 0:01:38]} Rxa7 {[%emt 0:02:57]} 24. Rxa7 {[%emt 0:00:15]} Bd8 {[%emt 0:03:15]} 25. Qb3 {[%emt 0:05:31]} Bb6 {[%emt 0:03:23]} 26. Ra6 {[%emt 0:03:05]} c4 {[%emt 0:03:33]} 27. Qxb5 {[%emt 0:00:37]} Qxb5 {[%emt 0:00:14]} 28. Nxb5 {[%emt 0:00:24]} cxd3 {[%emt 0:00:16]} 29. Nd6 {[%emt 0:00:43]} Rc2 {[%emt 0:00:53]} 30. Bd2 {[%emt 0:02:41]} g5 {[%emt 0:03:21]} 31. hxg5 {[%emt 0:04:56]} hxg5 {[%emt 0:00:06]} 32. Be1 {[%emt 0:00:52]} Bxf2 {[%emt 0:03:11]} 33. Bxf2 {[%emt 0:01:02]} Ng4 {[%emt 0:00:05]} 34. Nxg5 {[%emt 0:02:24]} Rxf2+ {[%emt 0:01:02]} 35. Kg1 {[%emt 0:00:19]} d2 {[%emt 0:01:18]} 36. Ra1 {[%emt 0:01:16]} Nde5 {[%emt 0:00:47]} 37. b3 {[%emt 0:01:58]} f6 {[%emt 0:04:03]} 0-1

[Event "FIDE WSTC Open 50 2025"]
[Site "Prague"]
[Date "2025.02.20"]
[Round "4.9"]
[White "Ftacnik, Lubomir"]
[Black "Ehlvest, Jaan"]
[Result "1/2-1/2"]
[Annotator "RC"]
[ECO "E94"]
[WhiteElo "2438"]
[BlackElo "2531"]
[PlyCount "56"]
[EventDate "2025.02.17"]
[EventType "team-tourn"]
[EventCountry "CZE"]
[SourceTitle "playchess.com"]
[Source "ChessBase"]
[SourceQuality "1"]
[TimeControl "40/5400+30:1800+30"]

1. Nf3 {[%emt 0:00:04]} Nf6 {[%emt 0:02:02]} 2. c4 {[%emt 0:00:23]} g6 {[%emt 0:00:05]} 3. Nc3 {[%emt 0:00:27]} Bg7 {[%emt 0:00:07]} 4. e4 {[%emt 0:00:45]} d6 {[%emt 0:00:08]} 5. d4 {[%emt 0:00:07]} O-O {[%emt 0:00:05]} 6. Be2 {[%emt 0:00:13]} e5 {[%emt 0:00:04]} 7. O-O {[%emt 0:00:29]} Bg4 {[%emt 0:00:07]} 8. d5 {[%emt 0:07:00]} a5 {[%emt 0:00:24]} 9. Be3 {[%emt 0:02:47]} Na6 {[%emt 0:00:13]} 10. Ne1 {[%emt 0:10:51]} Bd7 {[%emt 0:02:05]} 11. Nd3 {[%emt 0:01:15]} b6 {[%emt 0:03:23]} 12. Qd2 {[%emt 0:16:39]} Nc5 {[%emt 0:13:41]} 13. Nxc5 {[%emt 0:04:49]} bxc5 {[%emt 0:00:07]} 14. Bh6 {[%emt 0:02:45]} a4 {[%emt 0:11:07]} 15. Bxg7 {[%emt 0:03:43]} Kxg7 {[%emt 0:00:08]} 16. f4 {[%emt 0:04:05]} exf4 {[%emt 0:26:59]} 17. Rxf4 {[%emt 0:00:21]} Qe7 {[%emt 0:00:21]} 18. Raf1 {[%emt 0:01:28]} Ng8 {[%emt 0:02:45]} 19. Bg4 {[%emt 0:10:34]} Bxg4 {[%emt 0:05:23]} 20. Rxg4 {[%emt 0:00:39]} Nf6 {[%emt 0:00:16]} 21. Rgf4 {[%emt 0:04:05]} Nd7 {[%emt 0:00:41]} 22. Nb5 {[%emt 0:00:54]} Ne5 {[%emt 0:01:52]} 23. Qc3 {[%emt 0:00:24]} Kg8 {[%emt 0:00:43]} 24. h3 {[%emt 0:02:51]} Qd7 {[%emt 0:03:04]} 25. R4f2 {[%emt 0:03:11]} Rfe8 {[%emt 0:01:45]} 26. Kh2 {[%emt 0:03:56]} Re7 {[%emt 0:04:09]} 27. Kg1 {[%emt 0:02:40]} h5 {[%emt 0:01:57]} 28. Kh1 {[%emt 0:02:04]} Kh7 {[%emt 0:06:01]} 1/2-1/2

[Event "FIDE WSTC Open 50 2025"]
[Site "Prague"]
[Date "2025.02.20"]
[Round "4.10"]
[White "Kaidanov, Gregory"]
[Black "Mrva, Martin"]
[Result "1-0"]
[Annotator "RC"]
[ECO "C50"]
[WhiteElo "2513"]
[BlackElo "2394"]
[PlyCount "124"]
[EventDate "2025.02.17"]
[EventType "team-tourn"]
[EventCountry "CZE"]
[SourceTitle "playchess.com"]
[Source "ChessBase"]
[SourceQuality "1"]
[TimeControl "40/5400+30:1800+30"]

1. e4 {[%emt 0:00:05]} e5 {[%emt 0:00:22]} 2. Nf3 {[%emt 0:00:06]} Nc6 {[%emt 0:00:08]} 3. Bc4 {[%emt 0:00:05]} Nf6 {[%emt 0:00:38]} 4. d3 {[%emt 0:00:39]} Bc5 {[%emt 0:00:33]} 5. c3 {[%emt 0:00:53]} d6 {[%emt 0:00:48]} 6. Bg5 {[%emt 0:01:17]} h6 {[%emt 0:01:22]} 7. Bh4 {[%emt 0:00:06]} a5 {[%emt 0:03:57]} 8. Nbd2 {[%emt 0:01:32]} Qe7 {[%emt 0:15:20]} 9. O-O {[%emt 0:01:31]} Ba7 {[%emt 0:12:37]} 10. Re1 {[%emt 0:02:10]} g5 {[%emt 0:13:35]} 11. Bg3 {[%emt 0:00:06]} Nh7 {[%emt 0:00:12]} 12. d4 {[%emt 0:02:10]} Nf8 {[%emt 0:18:15]} 13. Bb5 {[%emt 0:01:45]} Ng6 {[%emt 0:02:20]} 14. d5 {[%emt 0:01:23]} Bd7 {[%emt 0:00:17]} 15. dxc6 {[%emt 0:04:17]} bxc6 {[%emt 0:00:15]} 16. Ba4 {[%emt 0:04:34]} g4 {[%emt 0:03:11]} 17. Nc4 {[%emt 0:06:12]} gxf3 {[%emt 0:05:02]} 18. Qxf3 {[%emt 0:00:21]} h5 {[%emt 0:00:07]} 19. h3 {[%emt 0:01:18]} Nh4 {[%emt 0:14:32]} 20. Bxh4 {[%emt 0:04:22]} Qxh4 {[%emt 0:00:06]} 21. Ne3 {[%emt 0:00:55]} Rb8 {[%emt 0:05:33]} 22. Rab1 {[%emt 0:07:57]} Rg8 {[%emt 0:00:05]} 23. Kf1 {[%emt 0:01:57]} Rg6 {[%emt 0:00:19]} 24. Nf5 {[%emt 0:01:50]} Qf4 {[%emt 0:00:55]} 25. Qxf4 {[%emt 0:01:18]} exf4 {[%emt 0:00:02]} 26. Nh4 {[%emt 0:00:58]} Rg5 {[%emt 0:01:11]} 27. Nf3 {[%emt 0:05:50]} Rg7 {[%emt 0:00:01]} 28. Nh4 {[%emt 0:03:06]} Kf8 {[%emt 0:00:18]} 29. b3 {[%emt 0:02:45]} Re8 {[%emt 0:00:27]} 30. Rbd1 {[%emt 0:00:50]} Re5 {[%emt 0:01:00]} 31. Nf3 {[%emt 0:00:35]} Re6 {[%emt 0:00:31]} 32. Rd3 {[%emt 0:02:22]} Reg6 {[%emt 0:01:23]} 33. Nh4 {[%emt 0:00:10]} Rg5 {[%emt 0:00:07]} 34. Rf3 {[%emt 0:01:31]} Rc5 {[%emt 0:00:40]} 35. Rd1 {[%emt 0:02:15]} Ke7 {[%emt 0:00:33]} 36. Rdd3 {[%emt 0:01:42]} Kf6 {[%emt 0:01:08]} 37. Rxf4+ {[%emt 0:02:47]} Kg5 {[%emt 0:00:02]} 38. Rdf3 {[%emt 0:01:37]} Rxc3 {[%emt 0:00:16]} 39. Rxc3 {[%emt 0:01:54]} Kxf4 {[%emt 0:00:01]} 40. Bxc6 {[%emt 0:00:28]} Be6 {[%emt 0:01:04]} 41. Nf3 {[%emt 0:35:21]} h4 {[%emt 0:06:26]} 42. Nxh4 {[%emt 0:00:00]} Ke5 {[%emt 0:01:38]} 43. Nf3+ {[%emt 0:00:00]} Kf6 {[%emt 0:00:05]} 44. Bd5 {[%emt 0:00:00]} Bc5 {[%emt 0:04:08]} 45. Bxe6 {[%emt 0:00:00]} fxe6 {[%emt 0:00:05]} 46. g4 {[%emt 0:00:00]} a4 {[%emt 0:01:33]} 47. e5+ {[%emt 0:00:00]} Kg6 {[%emt 0:00:08]} 48. Rc4 {[%emt 0:00:00]} a3 {[%emt 0:00:17]} 49. b4 {[%emt 0:00:00]} Bb6 {[%emt 0:00:36]} 50. Rc6 {[%emt 0:00:00]} Rf7 {[%emt 0:01:27]} 51. Kg2 {[%emt 0:00:00]} d5 {[%emt 0:00:48]} 52. Rxe6+ {[%emt 0:00:00]} Kg7 {[%emt 0:00:04]} 53. g5 {[%emt 0:00:00]} Rf4 {[%emt 0:00:18]} 54. h4 {[%emt 0:00:00]} Rxb4 {[%emt 0:00:27]} 55. h5 {[%emt 0:00:00]} Bc5 {[%emt 0:04:53]} 56. Rc6 {[%emt 0:00:00]} Bb6 {[%emt 0:00:28]} 57. h6+ {[%emt 0:00:00]} Kh7 {[%emt 0:05:20]} 58. Rf6 {[%emt 0:00:00]} Bc5 {[%emt 0:02:55]} 59. Rf7+ {[%emt 0:00:00]} Kg8 {[%emt 0:01:53]} 60. Rg7+ {[%emt 0:00:00]} Kh8 {[%emt 0:00:45]} 61. Rxc7 {[%emt 0:00:00]} Bf8 {[%emt 0:00:19]} 62. Rc8 {[%emt 0:00:00]} Kg8 {[%emt 0:00:11]} 1-0